bitfinex/quotes_BTCUSD_20241003
["timestamp","ask_amount","ask_price","bid_price","bid_amount"]
[1727959951234,0.07572007,60569.0,60568.0,0.34054026]
[1727959951523,0.001636,60569.0,60568.0,0.34054026]
[1727959951974,0.003636,60569.0,60568.0,0.34054026]
[1727959952198,0.003636,60569.0,60568.0,0.34154026]
[1727959952427,0.003636,60569.0,60568.0,0.34054026]
[1727959952645,0.30432231,60569.0,60568.0,0.01103726]
[1727959952868,0.30432231,60569.0,60568.0,0.003]
[1727959953088,0.46942531,60569.0,60563.0,0.495346]
[1727959953312,0.165109,60566.0,60563.0,0.165116]
[1727959953529,0.13713152,60566.0,60562.0,0.32707802]
[1727959953756,0.13713152,60566.0,60563.0,0.495349]
[1727959954004,0.16301406,60566.0,60564.0,0.165112]
[1727959954660,0.16301406,60566.0,60563.0,0.165115]
[1727959954915,0.13713152,60566.0,60562.0,0.0804]
[1727959955148,0.001636,60569.0,60562.0,0.001]
[1727959955149,0.165117,60563.0,60562.0,0.001]
[1727959955384,0.165117,60563.0,60551.0,0.0976]
[1727959955385,0.165133,60557.0,60551.0,0.262748]
[1727959955599,0.165133,60557.0,60546.0,0.00011113]
[1727959955600,0.58670328,60557.0,60546.0,0.00011113]
[1727959956258,0.58670328,60557.0,60546.0,0.16527313]
[1727959956735,0.59170328,60557.0,60547.0,0.166795]
[1727959956965,0.60807604,60557.0,60547.0,0.166795]
[1727959957179,0.58670328,60557.0,60548.0,0.330312]
[1727959957395,0.58670328,60557.0,60549.0,0.165155]
[1727959957660,0.58670328,60557.0,60550.0,0.165152]
[1727959958128,0.61959155,60557.0,60549.0,0.165155]
[1727959958360,0.62459155,60557.0,60549.0,0.165155]
[1727959958577,0.61259155,60557.0,60549.0,0.165155]
[1727959958792,0.61259155,60557.0,60550.0,0.165152]
[1727959959033,0.62259155,60557.0,60547.0,0.001636]
[1727959959251,0.75803723,60557.0,60547.0,0.001636]
[1727959960327,0.75803723,60557.0,60547.0,0.166796]
[1727959960328,0.59670328,60557.0,60547.0,0.166796]
[1727959960546,0.59670328,60557.0,60547.0,0.001636]
[1727959960757,0.59670328,60557.0,60549.0,0.165154]
[1727959961173,0.59670328,60557.0,60547.0,0.331956]
[1727959961416,0.59670328,60557.0,60548.0,0.165157]
[1727959962394,0.33924414,60557.0,60552.0,0.165146]
[1727959962609,0.33924414,60557.0,60552.0,0.165145]
[1727959962818,0.33924414,60557.0,60556.0,0.0089317]
[1727959963241,0.33924414,60557.0,60556.0,0.000818]
[1727959964722,0.33924414,60557.0,60556.0,0.0089317]
[1727959965144,0.33924414,60557.0,60556.0,0.000818]
[1727959965556,0.31335517,60557.0,60556.0,0.000818]
[1727959967426,0.14822217,60557.0,60556.0,0.000818]
[1727959967644,0.14822217,60557.0,60556.0,0.165954]
[1727959967874,0.14822217,60557.0,60556.0,0.1740677]
[1727959968096,0.01,60557.0,60556.0,0.1740677]
[1727959969073,0.004,60557.0,60556.0,0.1740677]
[1727959969323,0.02588437,60560.0,60559.0,0.165128]
[1727959969542,0.24767802,60567.0,60563.0,0.330234]
[1727959969762,0.13706336,60566.0,60564.0,0.165113]
[1727959969986,0.13706336,60566.0,60565.0,0.165111]
[1727959970203,0.13706336,60566.0,60565.0,0.17318619]
[1727959970421,0.001636,60569.0,60568.0,0.165103]
[1727959970610,0.13822231,60569.0,60568.0,0.165103]
[1727959970900,0.001636,60569.0,60568.0,0.17317674]
[1727959971790,0.001636,60569.0,60568.0,0.00807374]
[1727959972025,0.35401371,60569.0,60568.0,0.01407374]
[1727959972272,0.35401371,60569.0,60568.0,0.006]
[1727959972508,0.35401371,60569.0,60568.0,0.009]
[1727959972730,0.40200397,60569.0,60568.0,0.003]
[1727959972955,0.50200362,60569.0,60568.0,0.003]
[1727959973178,0.55144512,60569.0,60568.0,0.003]
[1727959973619,0.38734512,60569.0,60556.0,0.000818]
[1727959973836,0.165133,60557.0,60556.0,0.000818]
[1727959974078,0.330258,60559.0,60556.0,0.000818]
[1727959974537,0.165131,60558.0,60556.0,0.000818]
[1727959975429,0.19101732,60558.0,60556.0,0.000818]
[1727959975859,0.165131,60558.0,60556.0,0.002818]
[1727959976551,0.002,60559.0,60556.0,0.002818]
[1727959976772,0.002,60559.0,60557.0,0.165131]
[1727959976989,0.16245895,60560.0,60557.0,0.165131]
[1727959977204,0.165129,60559.0,60556.0,0.167953]
[1727959977419,0.001,60558.0,60556.0,0.167953]
[1727959977631,0.166131,60558.0,60556.0,0.002818]
[1727959977862,0.165131,60558.0,60556.0,0.002818]
[1727959978323,0.165131,60558.0,60556.0,0.000818]
[1727959978567,0.165131,60558.0,60556.0,0.001818]
[1727959978788,0.165131,60558.0,60557.0,0.00800852]
[1727959979003,0.19101733,60558.0,60557.0,0.00800852]
[1727959979219,0.19101733,60558.0,60556.0,0.002818]
[1727959979220,0.165133,60557.0,60556.0,0.002818]
[1727959979448,0.30335517,60557.0,60556.0,0.002818]
[1727959980118,0.13822217,60557.0,60556.0,0.002818]
[1727959980355,0.04946812,60566.0,60556.0,0.000818]
[1727959980570,0.20057225,60569.0,60564.0,0.165114]
[1727959980571,0.24767802,60565.0,60564.0,0.165114]
[1727959981023,0.13747232,60567.0,60564.0,0.165114]
[1727959981259,0.13747232,60567.0,60566.0,0.165109]
[1727959981479,0.001636,60569.0,60556.0,0.000818]
[1727959981480,0.001636,60569.0,60559.0,0.0995]
[1727959981716,0.001636,60569.0,60563.0,0.330233]
[1727959981717,0.009,60566.0,60563.0,0.330233]
[1727959981985,0.009,60566.0,60564.0,0.165114]
[1727959982193,0.13719968,60568.0,60564.0,0.165114]
[1727959982416,0.001636,60569.0,60566.0,0.165109]
[1727959982417,0.01,60567.0,60566.0,0.165109]
[1727959982643,0.01,60567.0,60562.0,0.330239]
[1727959982872,0.018,60567.0,60564.0,0.001]
[1727959983296,0.02588173,60566.0,60563.0,0.165115]
[1727959983511,0.21629432,60566.0,60564.0,0.003]
[1727959983729,0.30224252,60565.0,60564.0,0.003]
[1727959984171,0.30224252,60565.0,60564.0,0.005]
[1727959984896,0.165133,60557.0,60556.0,0.000818]
[1727959985353,0.165133,60557.0,60556.0,0.00882507]
[1727959985572,0.13678618,60557.0,60556.0,0.00882507]
[1727959985809,0.02588647,60557.0,60556.0,0.00882507]
[1727959986029,0.28334811,60561.0,60556.0,0.000818]
[1727959986272,0.13794947,60560.0,60556.0,0.000818]
[1727959988066,0.14594947,60560.0,60556.0,0.000818]
[1727959988293,0.15194947,60560.0,60556.0,0.001818]
[1727959988507,0.14594947,60560.0,60556.0,0.000818]
[1727959988732,0.17783553,60560.0,60556.0,0.001818]
[1727959989203,0.17183553,60560.0,60556.0,0.000818]
[1727959989416,0.17183553,60560.0,60556.0,0.001818]
[1727959989417,0.20875647,60560.0,60556.0,0.001818]
[1727959990124,0.04949324,60558.0,60556.0,0.001818]
[1727959990387,0.18764724,60557.0,60556.0,0.001818]
[1727959990597,0.138154,60557.0,60556.0,0.001818]
[1727959991230,0.138154,60557.0,60556.0,0.000818]
[1727959991439,0.138154,60557.0,60556.0,0.001818]
[1727959991651,0.18764101,60557.0,60556.0,0.001818]
[1727959992129,0.19064101,60557.0,60556.0,0.001818]
[1727959992523,0.19064101,60557.0,60556.0,0.000818]
[1727959992736,0.141154,60557.0,60556.0,0.000818]
[1727959993614,0.141154,60557.0,60556.0,0.00885138]
[1727959993813,0.146154,60557.0,60556.0,0.00985138]
[1727959994231,0.008,60557.0,60556.0,0.00985138]
[1727959994658,0.003,60557.0,60556.0,0.00885138]
[1727959994863,0.008,60557.0,60556.0,0.00985138]
[1727959995287,0.003,60557.0,60556.0,0.00885138]
[1727959995715,0.005,60557.0,60556.0,0.00985138]
[1727959996165,0.008,60557.0,60556.0,0.00985138]
[1727959996633,0.008,60557.0,60556.0,0.09355373]
[1727959996843,0.008,60557.0,60556.0,0.10290887]
[1727959997068,0.003,60557.0,60556.0,0.10190887]
[1727959997321,0.003,60557.0,60556.0,0.0925534]
[1727959997542,0.005,60557.0,60556.0,0.0935534]
[1727959997961,0.24767802,60564.0,60556.0,0.0925534]
[1727959998175,0.004,60557.0,60556.0,0.0975534]
[1727959998626,0.001,60557.0,60556.0,0.0975534]
[1727959998835,0.002,60557.0,60556.0,0.1055534]
[1727959999045,0.001,60557.0,60556.0,0.1005534]
[1727959999474,0.001,60557.0,60556.0,0.09725138]
[1727960000138,0.001,60557.0,60556.0,0.10055356]
[1727960000361,0.02588311,60561.0,60556.0,0.09255356]
[1727960000574,0.02755611,60560.0,60556.0,0.00885138]
[1727960000784,0.001,60557.0,60556.0,0.01685138]
[1727960001489,0.13922217,60557.0,60556.0,0.01585138]
[1727960001929,0.13922217,60557.0,60556.0,0.015818]
[1727960002156,0.13922217,60557.0,60556.0,0.007818]
[1727960002368,0.1910992,60557.0,60556.0,0.007818]
[1727960003507,0.1900992,60557.0,60556.0,0.000818]
[1727960003958,0.1900992,60557.0,60556.0,0.002818]
[1727960004182,0.13922217,60557.0,60556.0,0.009818]
[1727960004402,0.13822217,60557.0,60556.0,0.000818]
[1727960004832,0.14022217,60557.0,60556.0,0.001818]
[1727960005066,0.16610968,60557.0,60556.0,0.000818]
[1727960005305,0.02588751,60557.0,60556.0,0.00884605]
[1727960005516,0.001636,60569.0,60556.0,0.00884605]
[1727960005517,0.24931402,60568.0,60556.0,0.00984605]
[1727960005730,0.002,60557.0,60556.0,0.00884605]
[1727960006194,0.002,60557.0,60556.0,0.00984605]
[1727960007249,0.002,60557.0,60556.0,0.00884605]
[1727960007467,0.13747232,60567.0,60556.0,0.00884605]
[1727960007705,0.13747232,60567.0,60556.0,0.00984605]
[1727960007958,0.002,60557.0,60556.0,0.00984605]
[1727960008173,0.002,60557.0,60556.0,0.00884605]
[1727960008391,0.001,60557.0,60556.0,0.01384605]
[1727960008815,0.02688348,60557.0,60556.0,0.01384605]
[1727960009509,0.02688348,60557.0,60556.0,0.01584605]
[1727960009957,0.001,60557.0,60556.0,0.01584605]
[1727960010631,0.001,60557.0,60556.0,0.01684605]
[1727960010847,0.001636,60560.0,60556.0,0.00884605]
[1727960011065,0.001636,60560.0,60556.0,0.01084605]
[1727960011527,0.001636,60560.0,60556.0,0.00884605]
[1727960011974,0.001636,60560.0,60556.0,0.01084605]
[1727960012461,0.001636,60560.0,60559.0,0.1708]
[1727960012689,0.001636,60560.0,60559.0,0.35818599]
[1727960012976,0.002636,60560.0,60559.0,0.36619852]
[1727960013894,0.002636,60560.0,60559.0,0.52938523]
[1727960014117,0.002636,60560.0,60559.0,0.53438523]
[1727960014341,0.001636,60568.0,60567.0,0.44974811]
[1727960014566,0.001636,60568.0,60567.0,0.76290963]
[1727960014798,0.001636,60568.0,60567.0,0.79388777]
[1727960015714,0.003636,60568.0,60567.0,0.80788777]
[1727960015930,0.001638,60582.0,60574.0,0.0822]
[1727960016357,0.001638,60582.0,60576.0,0.002]
[1727960016591,0.001638,60582.0,60576.0,0.04954913]
[1727960016826,0.001638,60582.0,60576.0,0.05749135]
[1727960017043,0.001638,60582.0,60576.0,0.15559135]
[1727960017513,0.001638,60582.0,60576.0,0.25559135]
[1727960017948,0.001638,60582.0,60576.0,0.26159135]
[1727960017949,0.002638,60577.0,60576.0,0.26159135]
[1727960018187,0.002638,60577.0,60576.0,0.16349135]
[1727960018394,0.002638,60577.0,60576.0,0.11594222]
[1727960018610,0.002638,60577.0,60576.0,0.01594222]
[1727960018820,0.001638,60577.0,60576.0,0.00794222]
[1727960019039,0.002638,60577.0,60576.0,0.01594222]
[1727960019475,0.003638,60577.0,60576.0,0.018]
[1727960019684,0.003638,60577.0,60576.0,0.02584215]
[1727960020356,0.002638,60577.0,60576.0,0.01784215]
[1727960020816,0.003638,60577.0,60576.0,0.02584215]
[1727960021254,0.02951312,60577.0,60576.0,0.018]
[1727960021470,0.003638,60577.0,60576.0,0.018]
[1727960021713,0.002638,60577.0,60576.0,0.008]
[1727960021964,0.005638,60577.0,60565.0,0.24767802]
[1727960022179,0.1362456,60576.0,60565.0,0.24767802]
[1727960022433,0.1362456,60576.0,60566.0,0.007847]
[1727960023098,0.18145639,60576.0,60566.0,0.007847]
[1727960023328,0.32707802,60575.0,60566.0,0.007847]
[1727960023540,0.13631374,60574.0,60566.0,0.007847]
[1727960023755,0.13631374,60574.0,60559.0,0.000818]
[1727960024182,0.13631374,60574.0,60560.0,0.0078499]
[1727960024405,0.13631374,60574.0,60566.0,0.001]
[1727960024406,0.02587989,60571.0,60566.0,0.001]
[1727960024624,0.1624662,60571.0,60566.0,0.001]
[1727960024837,0.02587989,60571.0,60567.0,0.24767802]
[1727960025045,0.02587989,60571.0,60559.0,0.102818]
[1727960025276,0.02587989,60571.0,60568.0,0.00789891]
[1727960025498,0.02587989,60571.0,60559.0,0.15496692]
[1727960025713,0.002,60576.0,60559.0,0.15496692]
[1727960025714,0.002,60576.0,60569.0,0.00789843]
[1727960025922,0.002,60576.0,60559.0,0.15496692]
[1727960025923,0.24767802,60575.0,60570.0,0.00330102]
[1727960026139,0.24767802,60575.0,60560.0,0.00330102]
[1727960026565,0.1375429,60577.0,60566.0,0.24767802]
[1727960026801,0.001,60571.0,60566.0,0.005]
[1727960027278,0.24767802,60576.0,60567.0,0.0098994]
[1727960027708,0.24767802,60576.0,60567.0,0.002]
[1727960028147,0.001,60571.0,60567.0,0.002]
[1727960028485,0.24767802,60576.0,60567.0,0.002]
[1727960028578,0.24767802,60576.0,60560.0,0.07756131]
[1727960028793,0.24767802,60576.0,60561.0,0.05595242]
[1727960029020,0.02587848,60571.0,60566.0,0.003]
[1727960029520,0.16246479,60571.0,60559.0,0.24849602]
[1727960029960,0.16246479,60571.0,60560.0,0.00792389]
[1727960030979,0.16346479,60571.0,60567.0,0.006]
[1727960031155,0.16246479,60571.0,60560.0,0.00792389]
[1727960031355,0.16246479,60571.0,60559.0,0.24849602]
[1727960031584,0.02687848,60571.0,60566.0,0.24967802]
[1727960031733,0.02587848,60571.0,60567.0,0.00276412]
[1727960031939,0.02587848,60571.0,60567.0,0.01068814]
[1727960032171,0.02687848,60571.0,60567.0,0.03704336]
[1727960032595,0.02687848,60571.0,60567.0,0.01668814]
[1727960032789,0.02687848,60571.0,60567.0,0.01392402]
[1727960033255,0.001,60571.0,60568.0,0.24767802]
[1727960033508,0.001636,60576.0,60568.0,0.18886411]
[1727960033797,0.001636,60576.0,60569.0,0.02819824]
[1727960033798,0.001,60571.0,60569.0,0.02819824]
[1727960034039,0.001636,60576.0,60569.0,0.02819824]
[1727960034541,0.001,60571.0,60570.0,0.1757]
[1727960034795,0.001636,60576.0,60570.0,0.1737]
[1727960035012,0.001636,60576.0,60571.0,0.03907624]
[1727960035431,0.001636,60576.0,60572.0,0.00791798]
[1727960036114,0.002636,60576.0,60572.0,0.00791798]
[1727960036301,0.002636,60576.0,60570.0,0.1817]
[1727960036508,0.001636,60576.0,60571.0,0.00791846]
[1727960036932,0.002636,60576.0,60572.0,0.008]
[1727960037149,0.002636,60576.0,60572.0,0.01591798]
[1727960037810,0.003636,60576.0,60572.0,0.01591798]
[1727960038233,0.24767802,60575.0,60572.0,0.01591798]
[1727960038438,0.003636,60576.0,60572.0,0.00791798]
[1727960038439,0.002636,60576.0,60572.0,0.00791798]
[1727960038662,0.002636,60576.0,60571.0,0.012]
[1727960038663,0.002636,60576.0,60571.0,0.009]
[1727960038857,0.003636,60576.0,60572.0,0.01888522]
[1727960039069,0.002636,60576.0,60572.0,0.01888522]
[1727960039486,0.001,60575.0,60572.0,0.02888522]
[1727960039938,0.002636,60576.0,60572.0,0.01888522]
[1727960040182,0.001636,60576.0,60572.0,0.00788522]
[1727960040397,0.003636,60576.0,60572.0,0.02888522]
[1727960040614,0.02951285,60576.0,60572.0,0.021]
[1727960040826,0.02951285,60576.0,60573.0,0.00789449]
[1727960041309,0.02951285,60576.0,60572.0,0.021]
[1727960041558,0.02951285,60576.0,60573.0,0.00789449]
[1727960041774,0.001636,60576.0,60573.0,0.00789449]
[1727960041982,0.003636,60576.0,60573.0,0.021]
[1727960042188,0.003636,60576.0,60574.0,0.00789401]
[1727960042402,0.003636,60576.0,60574.0,0.02197581]
[1727960042609,0.003636,60576.0,60575.0,0.00789352]
[1727960043032,0.002636,60576.0,60575.0,0.00789352]
[1727960043243,0.002636,60576.0,60573.0,0.02031116]
[1727960043447,0.003636,60576.0,60575.0,0.00786519]
[1727960043665,0.003636,60576.0,60574.0,0.01686567]
[1727960043898,0.002636,60576.0,60575.0,0.01147768]
[1727960044161,0.002636,60576.0,60575.0,0.01934287]
[1727960044638,0.003636,60576.0,60575.0,0.01934287]
[1727960044887,0.003636,60576.0,60575.0,0.00786519]
[1727960044888,0.19150011,60576.0,60575.0,0.00786519]
[1727960045112,0.19250011,60576.0,60575.0,0.012]
[1727960045606,0.19150011,60576.0,60575.0,0.012]
[1727960045822,0.003636,60576.0,60575.0,0.021]
[1727960046338,0.16648217,60576.0,60575.0,0.021]
[1727960046591,0.13926836,60576.0,60575.0,0.021]
[1727960047084,0.13926836,60576.0,60575.0,0.012]
[1727960047085,0.13826836,60576.0,60575.0,0.012]
[1727960047676,0.13926836,60576.0,60566.0,0.24849602]
[1727960047847,0.1458816,60576.0,60575.0,0.001]
[1727960048095,0.009636,60576.0,60575.0,0.001]
[1727960048559,0.003636,60576.0,60566.0,0.24849602]
[1727960048765,0.001636,60576.0,60566.0,0.24849602]
[1727960049037,0.009636,60576.0,60575.0,0.001]
[1727960049495,0.001636,60576.0,60566.0,0.32899602]
[1727960049720,0.02751371,60576.0,60567.0,0.059673]
[1727960049968,0.02951371,60576.0,60567.0,0.059673]
[1727960050486,0.001636,60576.0,60573.0,0.19086411]
[1727960050716,0.001636,60576.0,60574.0,0.00286601]
[1727960050717,0.002636,60576.0,60574.0,0.00286601]
[1727960050951,0.002636,60576.0,60574.0,0.02223902]
[1727960051202,0.002636,60576.0,60573.0,0.18886411]
[1727960051453,0.002636,60576.0,60575.0,0.00788228]
[1727960051666,0.003636,60576.0,60574.0,0.00788276]
[1727960051913,0.003636,60576.0,60573.0,0.19686411]
[1727960051914,0.002636,60576.0,60575.0,0.00788228]
[1727960052159,0.002636,60576.0,60573.0,0.18886411]
[1727960052160,0.001636,60576.0,60573.0,0.18886411]
[1727960052397,0.001636,60576.0,60575.0,0.02775692]
[1727960052641,0.001636,60576.0,60575.0,0.01987464]
[1727960052888,0.001636,60576.0,60575.0,0.02775692]
[1727960053299,0.003636,60576.0,60575.0,0.01688228]
[1727960053723,0.002636,60576.0,60575.0,0.01688228]
[1727960053979,0.003636,60576.0,60575.0,0.02888228]
[1727960063911,0.02951034,60576.0,60575.0,0.02888228]
[1727960064405,0.02951034,60576.0,60575.0,0.021]
[1727960065967,0.02951034,60576.0,60575.0,0.02884458]
[1727960066199,0.003636,60576.0,60575.0,0.02884458]
[1727960066412,0.003636,60576.0,60575.0,0.04667827]
[1727960066666,0.003636,60576.0,60575.0,0.04855608]
[1727960066950,0.00144392,60575.0,60574.0,0.0751]
[1727960068245,0.00144392,60575.0,60574.0,0.0851]
[1727960068246,0.00244392,60575.0,60574.0,0.0851]
[1727960068460,0.00244392,60575.0,60574.0,0.14504977]
[1727960068672,0.00244392,60575.0,60574.0,0.15224112]
[1727960069340,0.00344392,60575.0,60574.0,0.15324112]
[1727960069761,0.00344392,60575.0,60574.0,0.43942783]
[1727960069991,0.00344392,60575.0,60574.0,0.53782783]
[1727960070219,0.00344392,60575.0,60574.0,0.53982783]
[1727960070449,0.00344392,60575.0,60574.0,0.53782783]
[1727960070692,0.00344392,60575.0,60574.0,0.17814112]
[1727960070902,0.00344392,60575.0,60574.0,0.07814112]
[1727960071549,0.00344392,60575.0,60574.0,0.08653655]
[1727960073297,0.00344392,60575.0,60574.0,0.08853655]
[1727960073710,0.00344392,60575.0,60574.0,0.2380289]
[1727960073921,0.00344392,60575.0,60574.0,0.2360289]
[1727960074136,0.00344392,60575.0,60574.0,0.18653655]
[1727960076394,0.00344392,60575.0,60574.0,0.35162355]
[1727960078717,0.00344392,60575.0,60574.0,0.29167378]
[1727960078935,0.00344392,60575.0,60574.0,0.28327835]
[1727960084756,0.00344392,60575.0,60574.0,0.26983464]
[1727960089605,0.00344392,60575.0,60574.0,0.00655629]
[1727960089795,0.25172792,60575.0,60574.0,0.00655629]
[1727960090070,0.25172792,60575.0,60569.0,0.000818]
[1727960090071,0.165098,60570.0,60569.0,0.000818]
[1727960090288,0.18886411,60571.0,60569.0,0.000818]
[1727960090502,0.165098,60570.0,60569.0,0.000818]
[1727960090732,0.28981684,60570.0,60569.0,0.000818]
[1727960091158,0.165096,60571.0,60569.0,0.000818]
[1727960091380,0.36704403,60575.0,60571.0,0.165095]
[1727960091381,0.17817992,60575.0,60571.0,0.165095]
[1727960091591,0.16509,60573.0,60569.0,0.000818]
[1727960091810,0.16509,60573.0,60569.0,0.165918]
[1727960092267,0.165087,60574.0,60571.0,0.165094]
[1727960092516,0.001,60571.0,60570.0,0.17116903]
[1727960092703,0.001,60571.0,60570.0,0.165097]
[1727960093135,0.001,60571.0,60570.0,0.16815824]
[1727960093353,0.00307992,60575.0,60570.0,0.00306124]
[1727960093591,0.00307992,60575.0,60574.0,0.165087]
[1727960094109,0.02895741,60575.0,60574.0,0.165087]
[1727960095668,0.00307992,60575.0,60574.0,0.165087]
[1727960095885,0.00507992,60575.0,60574.0,0.165087]
[1727960097640,0.00607992,60575.0,60574.0,0.165087]
[1727960097875,0.00507992,60575.0,60574.0,0.165087]
[1727960098290,0.00607992,60575.0,60574.0,0.165087]
[1727960098722,0.00407992,60575.0,60574.0,0.17112641]
[1727960099590,0.00307992,60575.0,60574.0,0.17112641]
[1727960099798,0.00407992,60575.0,60574.0,0.17112641]
[1727960100000,0.00507992,60575.0,60574.0,0.17112641]
[1727960100672,0.00507992,60575.0,60574.0,0.41880443]
[1727960100881,0.00507992,60575.0,60574.0,0.56064665]
[1727960101104,0.00507992,60575.0,60574.0,0.31296863]
[1727960101308,0.00507992,60575.0,60574.0,0.315357]
[1727960101580,0.00507992,60575.0,60574.0,0.31296863]
[1727960101845,0.00407992,60575.0,60574.0,0.31516552]
[1727960102089,0.00407992,60575.0,60574.0,0.49166951]
[1727960102320,0.00507992,60575.0,60574.0,0.48836863]
[1727960102539,0.00507992,60575.0,60574.0,0.56263334]
[1727960102773,0.00407992,60575.0,60574.0,0.48836863]
[1727960102996,0.00507992,60575.0,60574.0,0.48836863]
[1727960104152,0.00507992,60575.0,60574.0,0.53786593]
[1727960104392,0.00507992,60575.0,60574.0,0.27112641]
[1727960104621,0.23955164,60581.0,60574.0,0.10685741]
[1727960104874,0.001638,60582.0,60581.0,0.165068]
[1727960105853,0.001638,60582.0,60581.0,0.17109142]
[1727960110000,0.001638,60582.0,60581.0,0.17439243]
[1727960110738,0.001638,60582.0,60581.0,0.38707644]
[1727960111006,0.001638,60582.0,60581.0,0.46227813]
[1727960111234,0.001638,60582.0,60581.0,0.56207813]
[1727960111704,0.001638,60582.0,60581.0,0.58290623]
[1727960111957,0.001638,60582.0,60581.0,0.74609294]
[1727960112180,0.002638,60582.0,60581.0,0.74709294]
[1727960112665,0.003638,60582.0,60581.0,0.82959294]
[1727960112952,1e-06,60582.0,60581.0,0.98297292]
[1727960113240,0.24767802,60597.0,60596.0,0.165027]
[1727960113478,0.24767802,60597.0,60596.0,0.80493525]
[1727960113718,0.24767802,60597.0,60596.0,0.86031946]
[1727960113980,0.001638,60598.0,60597.0,0.265024]
[1727960114200,0.001638,60598.0,60597.0,0.43414477]
[1727960114935,0.001638,60598.0,60597.0,0.43614477]
[1727960115172,0.001638,60598.0,60597.0,0.62233148]
[1727960115430,0.001638,60598.0,60597.0,0.62733148]
[1727960115681,0.001638,60598.0,60597.0,0.68577053]
[1727960115682,0.003638,60598.0,60597.0,0.68577053]
[1727960116155,0.003638,60598.0,60597.0,0.63633148]
[1727960116384,0.003638,60598.0,60597.0,0.8840095]
[1727960116627,0.001638,60601.0,60600.0,0.295016]
[1727960116920,0.001638,60601.0,60600.0,0.69641516]
[1727960117178,0.001638,60601.0,60600.0,0.65291425]
[1727960117891,0.002638,60601.0,60600.0,0.65291425]
[1727960118323,0.003638,60601.0,60600.0,0.65991425]
[1727960118537,0.003638,60601.0,60600.0,0.82310096]
[1727960121723,0.003638,60601.0,60600.0,0.82110096]
[1727960121935,0.003638,60601.0,60600.0,0.79810096]
[1727960122163,0.003638,60601.0,60600.0,0.27786343]
[1727960122389,0.003638,60601.0,60600.0,0.17786343]
[1727960122611,0.003638,60601.0,60600.0,0.01284743]
[1727960122846,0.003638,60601.0,60600.0,0.18075564]
[1727960123083,0.248151,60601.0,60600.0,0.01573964]
[1727960123531,0.082138,60601.0,60598.0,0.165019]
[1727960123743,0.082138,60601.0,60599.0,0.00705118]
[1727960123972,0.003638,60601.0,60600.0,0.208401]
[1727960124206,0.003638,60601.0,60600.0,0.20460182]
[1727960124207,0.002638,60601.0,60600.0,0.20460182]
[1727960124513,0.002638,60601.0,60600.0,0.20660182]
[1727960124673,0.003638,60601.0,60600.0,0.20660182]
[1727960124896,0.002638,60601.0,60600.0,0.3710882]
[1727960125113,0.003638,60601.0,60600.0,0.37478853]
[1727960125337,0.002638,60601.0,60600.0,0.37478853]
[1727960125555,0.001638,60601.0,60600.0,0.36778853]
[1727960125783,0.001638,60601.0,60600.0,0.39922562]
[1727960126246,0.002638,60601.0,60600.0,0.39922562]
[1727960126913,0.002638,60601.0,60600.0,0.50422562]
[1727960127133,0.002638,60601.0,60600.0,0.50622562]
[1727960127607,0.002638,60601.0,60600.0,0.51122562]
[1727960127830,0.002638,60601.0,60600.0,0.50622562]
[1727960128264,0.002638,60601.0,60600.0,0.51122562]
[1727960128499,0.001638,60601.0,60600.0,0.50622562]
[1727960128727,0.002638,60601.0,60600.0,0.50622562]
[1727960128943,0.002638,60601.0,60600.0,0.51122562]
[1727960128944,0.003638,60601.0,60600.0,0.51122562]
[1727960130243,1e-06,60601.0,60600.0,0.51122562]
[1727960131704,1e-06,60601.0,60600.0,0.60212562]
[1727960133073,1e-06,60601.0,60600.0,0.68012562]
[1727960134170,1e-06,60601.0,60600.0,0.85922562]
[1727960134391,1e-06,60607.0,60606.0,0.56316411]
[1727960134622,1e-06,60607.0,60606.0,1.40781582]
[1727960134843,1e-06,60607.0,60606.0,1.41361115]
[1727960135295,0.24767802,60618.0,60616.0,0.171972]
[1727960135527,0.24767802,60618.0,60616.0,0.64702282]
[1727960135756,0.001636,60619.0,60618.0,0.171967]
[1727960135979,0.001636,60619.0,60618.0,0.45815371]
[1727960136278,0.001636,60619.0,60618.0,0.58153528]
[1727960136507,0.001636,60630.0,60620.0,0.48882611]
[1727960136508,1e-06,60621.0,60620.0,0.48882611]
[1727960136730,1e-06,60621.0,60620.0,1.81997482]
[1727960136956,1e-06,60621.0,60620.0,1.84205979]
[1727960137179,1e-06,60621.0,60620.0,1.84705979]
[1727960137640,0.24767802,60635.0,60631.0,0.007]
[1727960137856,0.24767802,60641.0,60640.0,0.164907]
[1727960138079,0.24767802,60641.0,60640.0,0.64825501]
[1727960138302,0.000818,60643.0,60640.0,0.64825501]
[1727960138303,0.000818,60643.0,60642.0,0.287902]
[1727960138521,0.000818,60643.0,60642.0,0.29616806]
[1727960138782,0.000818,60643.0,60642.0,0.30456865]
[1727960138997,0.000818,60643.0,60642.0,0.46775536]
[1727960139241,0.000818,60643.0,60642.0,0.4644893]
[1727960139493,1e-06,60643.0,60642.0,1.62722265]
[1727960139710,1e-06,60643.0,60642.0,1.72692265]
[1727960139941,1e-06,60643.0,60642.0,1.76004265]
[1727960140600,0.002001,60643.0,60642.0,0.91870565]
[1727960140818,0.002001,60643.0,60642.0,0.51614065]
[1727960141037,0.002001,60643.0,60642.0,0.51914065]
[1727960141276,0.002001,60643.0,60642.0,0.52114065]
[1727960141498,0.002001,60643.0,60642.0,0.51614065]
[1727960141714,1e-06,60643.0,60642.0,0.53514065]
[1727960141941,0.02584077,60661.0,60651.0,0.007]
[1727960142176,0.02584077,60661.0,60658.0,0.164858]
[1727960142416,0.02584077,60661.0,60656.0,0.51859111]
[1727960142689,0.02584077,60661.0,60660.0,0.164853]
[1727960143122,0.02584077,60661.0,60660.0,0.17301064]
[1727960143369,0.02584077,60661.0,60660.0,0.33619735]
[1727960143821,0.02584077,60661.0,60660.0,0.17301064]
[1727960144102,0.02584077,60661.0,60660.0,0.58387537]
[1727960144330,0.02584077,60661.0,60660.0,0.38744466]
[1727960144566,0.02684077,60661.0,60660.0,0.60030877]
[1727960144780,0.02684077,60661.0,60660.0,0.58630877]
[1727960145002,0.001,60661.0,60660.0,0.58630877]
[1727960145241,0.02583816,60669.0,60661.0,0.16485]